Cogmind - Beta 16 @@@ ROGUE MODE // 2025.10.31 @ 23:20:57 Player: Roadie Result: Self-destructed Performance ------------- Evolutions (2) 1000 Regions Visited (4) 800 Robots Destroyed (26) 130 Value Destroyed (527) 527 Prototype IDs (4) 80 Alien Tech Used (0) 0 Bonus (0) 0 TOTAL SCORE: 2537 Bonus ------- None Cogmind --------- Core Integrity 319/550 Matter 77/300 Energy 275/275 System Corruption 7% Temperature Cool (0) Movement Core (300) Ox5 Location -8/Materials Parts ------- > --- POWER (2) -------- Deuterium Engine > --- PROPULSION (4) --- (None) > --- UTILITY (2) ------ (None) > --- WEAPON (3) ------- Advanced Beam Rifle Heavy Particle Cannon > --- INVENTORY (5) ---- Ion Engine Deuterium Engine Particle Charger Particle Charger Peak State ------------ > --- POWER ------------ Deuterium Engine Deuterium Engine > --- PROPULSION ------- Compact Wheel Compact Wheel Compact Wheel > --- UTILITY ---------- Heavy Armor Plating > --- WEAPON ----------- Advanced Beam Rifle Heavy Particle Cannon Grenade Launcher > --- INVENTORY -------- Ion Engine Particle Charger Particle Charger [Rating: 23] Favorites ----------- Power Ion Engine Engine Ion Engine Power Core Light Nuclear Core Propulsion Compact Wheel Wheel Compact Wheel Hover Unit Aerolev Unit Utility Medium Storage Unit Device Particle Charger Storage Medium Storage Unit Protection Heavy Armor Plating Weapon Grenade Launcher Energy Gun Medium Laser Energy Cannon Heavy Particle Cannon Ballistic Gun Assault Rifle Launcher Grenade Launcher Build | -11 -10 -9 -9 -8 ------- Run | Yrd Mat Mat Min Mat Slots Evolved 4 | . . 2 . 2 Power 1 | . . 1 . . Propulsion 2 | . . 1 . 1 Utility . | . . . . . Weapon 1 | . . . . 1 Parts Attached 35 | 7 5 9 2 12 Power 8 | 1 . 3 . 4 Engine 7 | 1 . 3 . 3 Core 1 | . . . . 1 Reactor . | . . . . . Propulsion 8 | 2 . 3 1 2 Treads . | . . . . . Leg . | . . . . . Wheel 7 | 2 . 3 1 1 Hover 1 | . . . . 1 Flight . | . . . . . Utility 7 | 1 2 1 . 3 Device 1 | . . . . 1 Storage 4 | 1 2 1 . . Processor . | . . . . . Hackware . | . . . . . Protection 2 | . . . . 2 Artifact . | . . . . . Weapon 12 | 3 3 2 1 3 Energy Gun 4 | 1 . . 1 2 Energy Cannon 1 | . . . . 1 Ballistic Gun 3 | 2 1 . . . Ballistic Cannon . | . . . . . Launcher 4 | . 2 2 . . Special Weapon . | . . . . . Impact Weapon . | . . . . . Slashing Weapon . | . . . . . Piercing Weapon . | . . . . . Special Melee Weapon . | . . . . . Unidentified Prototypes 4 | . . 2 . 2 Parts Lost 13 | . . . 5 8 Power 3 | . . . 2 1 Propulsion 6 | . . . 2 4 Utility 2 | . . . . 2 Weapon 2 | . . . 1 1 Highest Loss Streak 6 | . . . 5 6 To Critical Strikes . | . . . . . Average Backups 4 | 2 4 7 4 3 Power 1 | . 1 1 2 . Propulsion . | 1 2 2 . . Utility 1 | . . . . 2 Weapon 1 | . 1 3 2 . Tool/Special . | . . . . . Unused Backups 6 | 1 . 3 . 2 Power . | . . . . . Propulsion 3 | 1 . 2 . . Utility 3 | . . 1 . 2 Weapon . | . . . . . Tool/Special . | . . . . . Average Slot Usage (%) 73 | . 86 84 64 74 Engine 11 | . 14 15 2 16 Wheel 27 | . 28 30 30 24 Storage 7 | . 15 15 11 . Protection 2 | . . . . 6 Energy Gun 5 | . 3 . 3 8 Energy Cannon 1 | . . . . 2 Ballistic Gun 5 | . 18 . . 5 Launcher 11 | . 6 22 17 7 Peak Build Rating 23 | 6 7 19 19 23 Average Rating 11 | 4 6 12 9 16 On Entrance 7 | . 6 7 19 6 Avg Prop Armor Cover (%) . | . . . . . Naked Turns . | . . . . . Heaviest Build 44 | 14 31 35 35 44 Greatest Support 58 | 26 26 40 42 58 Greatest Overweight (x) 5 | . 1 1 1 5 Average Overweight (x) . | . . . . . Largest Inventory Capacity 10 | 8 10 10 10 10 Average Capacity 7 | 7 8 10 10 5 Most Carried 10 | 4 6 10 8 6 Average Carried 4 | 2 5 8 4 4 Final Capacity 10 | 8 10 10 10 5 Final Carried 8 | 4 6 8 4 4 Class Distribution -------------------- 71% | Mutant 28% | Bomber Dominant Class ---------------- Mutant | -10/Materials Mutant | -9/Materials Mutant | -9/Mines Bomber | -8/Materials Resources | -11 -10 -9 -9 -8 ----------- Run | Yrd Mat Mat Min Mat Matter Collected 581 | 227 . . 157 197 Remotely . | . . . . . Salvage Created 751 | . 37 124 30 560 Parts 54 | . 3 6 1 44 Haulers Intercepted 2 | . . 1 . 1 Recyclers Shooed . | . . . . . Parts Field Recycled . | . . . . . Retrieved Matter . | . . . . . Parts Self-Destructed . | . . . . . Prevented . | . . . . . Parts Restored . | . . . . . Kills | -11 -10 -9 -9 -8 ------- Run | Yrd Mat Mat Min Mat Combat Hostiles Destroyed 15 | . 2 2 . 11 Guns 3 | . . . . 3 Cannons 1 | . . . . 1 AOE 11 | . 2 2 . 7 Classes Destroyed 9 | . 1 3 1 4 Worker 2 | . . . 1 1 Builder 3 | . . 1 . 2 Hauler 2 | . . 1 . 1 Recycler 3 | . . . . 3 Watcher 1 | . . 1 . . Swarmer 5 | . . . . 5 Grunt 7 | . 2 2 . 3 Sentry 2 | . . . . 2 Hunter 1 | . . . . 1 Best Kill Streak 8 | . 2 3 1 8 Combat Bots Only 5 | . 2 2 . 5 Max Kills in Single Turn 5 | . 1 2 1 5 Gunslinging . | . . . . . Exploded 3 | . 1 1 . 3 Melee . | . . . . . Uniques/NPCs Destroyed . | . . . . . Combat | -11 -10 -9 -9 -8 -------- Run | Yrd Mat Mat Min Mat Hostile Shots Fired 176 | . 9 18 24 125 Missed 51 | . 1 10 6 34 Hits 125 | . 8 8 18 91 Projectile 125 | . 8 8 18 91 AOE 16 | . . . 16 . Critical Strikes 2 | . . 1 . 1 Damage Taken 2080 | . 88 91 563 1338 Core 290 | . 10 24 25 231 Absorbed by Shields . | . . . . . Core Remaining (%) 94 | 100 96 . 87 . Volleys Fired 26 | . 2 4 1 19 Largest 3 | . 2 2 2 3 Hottest 166 | . 60 72 66 166 Shots Fired 58 | . 4 8 2 44 Gun 26 | . . . . 26 Cannon 11 | . . . . 11 Launcher 21 | . 4 8 2 7 Special . | . . . . . Kinetic 8 | . . . . 8 Thermal 29 | . . . . 29 Explosive 18 | . 4 6 1 7 Electromagnetic 3 | . . 2 1 . Robot Hit Streak 10 | . 3 10 . 8 Robot Miss Streak 5 | . . . . 5 Penetration Max . | . . . . . Secondary Targets . | . . . . . Shots Hit Robots 33 | . 3 7 . 23 Core Hits 39 | . 3 4 1 31 Critical Kills . | . . . . . Critical Parts Destroyed . | . . . . . Critical Strikes 1 | . . . . 1 Burn 1 | . . . . 1 Melee Attacks . | . . . . . Impact . | . . . . . Slashing . | . . . . . Piercing . | . . . . . Sneak Attacks . | . . . . . Combat Hostiles . | . . . . . Follow-up Attacks . | . . . . . Damage Inflicted 1621 | . 144 410 28 1039 Guns 246 | . . . . 246 Cannons 150 | . . . . 150 Explosions 1225 | . 144 410 28 643 Melee . | . . . . . Ramming . | . . . . . Kinetic 68 | . . . . 68 Thermal 328 | . . . . 328 Explosive 1082 | . 144 295 . 643 Electromagnetic 143 | . . 115 28 . Impact . | . . . . . Slashing . | . . . . . Piercing . | . . . . . Highest Corruption 7 | . . . . 7 Average Corruption 6 | . . . . 6 Corruption Purged . | . . . . . Corruption Blocked . | . . . . . Effects 8 | . . . . 8 Message Errors 2 | . . . . 2 Matter Fused 1 | . . . . 1 Energy Discharges 2 | . . . . 2 Data Loss (minor) 1 | . . . . 1 Data Loss (major) 1 | . . . . 1 Weapon Failures 1 | . . . . 1 Overload Shots . | . . . . . Overflow Damage 17 | . . 17 . . Projectiles . | . . . . . Explosions 17 | . . 17 . . Melee . | . . . . . Knockbacks . | . . . . . Impact . | . . . . . Kinetic . | . . . . . Secondary . | . . . . . Self-Inflicted Damage 48 | . . . . 48 Shots 2 | . . . . 2 Rammed . | . . . . . Targets Rammed . | . . . . . Kicked . | . . . . . Crushed . | . . . . . Highest Temperature 750 | . 12 24 . 750 Average Temperature 186 | . 7 11 . 212 Received Heat Transfer 534 | . 48 69 30 387 Effects 20 | . . . . 20 Shutdowns 7 | . . . . 7 Energy Bleed 2 | . . . . 2 Interference 2 | . . . . 2 Matter Decay 1 | . . . . 1 Damage (minor) 2 | . . . . 2 Damage (major) 5 | . . . . 5 Damage (core) 1 | . . . . 1 Siege Activations . | . . . . . Martial Activations . | . . . . . Shielding Activations . | . . . . . Robots Disrupted . | . . . . . Combat Hostiles . | . . . . . Robots Corrupted . | . . . . . Combat Hostiles . | . . . . . Parts Fried 2 | . . 2 . . Impact Corruptions . | . . . . . Robots Melted . | . . . . . Combat Hostiles . | . . . . . Parts Melted 1 | . . . . 1 Heat Transferred 666 | . . . . 666 Parts Sabotaged . | . . . . . Parts Stolen . | . . . . . Parts Stripped . | . . . . . Power Chain Reactions . | . . . . . Alert | -11 -10 -9 -9 -8 ------- Run | Yrd Mat Mat Min Mat Maximum Alert Level 1 | . . . . 1 Low Security (%) 98 | 100 100 100 100 97 Level 1 1 | . . . . 2 Level 2 . | . . . . . Level 3 . | . . . . . Level 4 . | . . . . . Level 5 . | . . . . . High Security . | . . . . . Max Security . | . . . . . Peak Influence 217 | . 85 77 25 217 Initial 31 | . . 31 25 . Average 40 | . 29 48 2 73 Influence Increases 594 | . 105 76 16 397 Destroy 0b10 Robot/C 300 | . 40 40 . 220 Destroy 0b10 Robot/NC 55 | . . 15 5 35 Destroy Leader 66 | . 10 4 . 52 Successful Hack 14 | . 14 . . . Destroy Structure 84 | . 11 17 11 45 Lose Combat Pursuer 75 | . 30 . . 45 Influence Decreases 443 | . 30 84 83 246 Entered New Map 86 | . . 44 42 . Time Decay 262 | . 30 40 26 166 Lost Part 95 | . . . 15 80 Squads Dispatched 4 | . 1 1 . 2 Investigation 1 | . 1 . . . Extermination . | . . . . . Reinforcement 3 | . . 1 . 2 Assault . | . . . . . Garrison . | . . . . . Intercept . | . . . . . Searches Triggered . | . . . . . Construction Impeded . | . . . . . Haulers Reinforced . | . . . . . Active Scanning Responses . | . . . . . Cargo Convoy Interrupts . | . . . . . Stealth | -11 -10 -9 -9 -8 --------- Run | Yrd Mat Mat Min Mat Distress Signals 3 | . 1 . . 2 Communications Jammed . | . . . . . Distress Signals . | . . . . . Times Spotted 37 | . 5 8 3 21 Peak Tracking Total 8 | . 3 6 2 8 Tactical Retreats 4 | . 1 . 1 2 Traps | -11 -10 -9 -9 -8 ------- Run | Yrd Mat Mat Min Mat Traps Triggered 1 | . 1 . . . Indirectly . | . . . . . Trap Hack Attempts . | . . . . . Triggered . | . . . . . Disarmed . | . . . . . Reprogrammed . | . . . . . Reused . | . . . . . Traps Extracted . | . . . . . Installed . | . . . . . Triggered . | . . . . . Machines | -11 -10 -9 -9 -8 ---------- Run | Yrd Mat Mat Min Mat Machines Disabled . | . . . . . Max in Single Turn . | . . . . . Machines Repaired . | . . . . . Machines Dismantled . | . . . . . Machines Sabotaged . | . . . . . Overloaded Fab Kills . | . . . . . Hacking | -11 -10 -9 -9 -8 --------- Run | Yrd Mat Mat Min Mat Machines Accessed 2 | . 2 . . . Terminals 2 | . 2 . . . Fabricators . | . . . . . Repair Stations . | . . . . . Recycling Units . | . . . . . Scanalyzers . | . . . . . Garrison Access . | . . . . . Total Hacks 5 | . 5 . . . Successful 3 | . 3 . . . Failed 2 | . 2 . . . Catastrophic . | . . . . . Database Lockouts . | . . . . . Manual 2 | . 2 . . . Terminals 5 | . 5 . . . Fabricators . | . . . . . Repair Stations . | . . . . . Recycling Units . | . . . . . Scanalyzers . | . . . . . Garrison Access . | . . . . . Terminal Hacks 3 | . 3 . . . Robot Analysis 1 | . 1 . . . Level Access Points 1 | . 1 . . . Zone Layout 1 | . 1 . . . Fabricator Hacks . | . . . . . Repair Station Hacks . | . . . . . Recycling Unit Hacks . | . . . . . Scanalyzer . | . . . . . Garrison Access Hacks . | . . . . . Unauthorized Hacks . | . . . . . Terminals . | . . . . . Fabricators . | . . . . . Repair Stations . | . . . . . Recycling Units . | . . . . . Scanalyzers . | . . . . . Garrison Access . | . . . . . Data Cores Recovered . | . . . . . Used . | . . . . . Hacking Detections 2 | . 2 . . . Full Trace Events . | . . . . . Feedback Events . | . . . . . Feedback Blocked . | . . . . . Robot Schematics Acquired . | . . . . . Robots Built . | . . . . . Authchips . | . . . . . Time . | . . . . . Total Robot Build Rating . | . . . . . Part Schematics Acquired . | . . . . . Parts Built . | . . . . . Authchips . | . . . . . Time . | . . . . . Total Part Build Rating . | . . . . . Part Studies Acquired . | . . . . . Parts Repaired . | . . . . . Time . | . . . . . Parts Recycled . | . . . . . Recycled Matter . | . . . . . Retrieved Matter . | . . . . . Retrieved Components . | . . . . . Parts Scanalyzed . | . . . . . Part Schematics Acquired . | . . . . . Parts Damaged . | . . . . . Bothacking | -11 -10 -9 -9 -8 ------------ Run | Yrd Mat Mat Min Mat Used RIF Installer . | . . . . . Robots Hacked . | . . . . . Non-combat . | . . . . . Combat . | . . . . . Robot Hacks Applied . | . . . . . Relay Couplers Released . | . . . . . Fabnet Peak Effective % . | . . . . . Robots Rewired . | . . . . . Allies Hacked . | . . . . . Hacks Repelled . | . . . . . Allies | -11 -10 -9 -9 -8 -------- Run | Yrd Mat Mat Min Mat Total Allies . | . . . . . Largest Group . | . . . . . Highest-Rated Group . | . . . . . Highest-Rated Ally . | . . . . . Total Orders . | . . . . . Ally Attacks . | . . . . . Total Damage . | . . . . . Kills . | . . . . . Allies Corrupted . | . . . . . Allies Melted . | . . . . . Intel | -11 -10 -9 -9 -8 ------- Run | Yrd Mat Mat Min Mat Active Infowar (turns) . | . . . . . Robot Analysis Total 1 | . 1 . . . Derelict Logs Recovered 1 | . . . 1 . Drone Launches . | . . . . . Drone Recoveries . | . . . . . Exploration | -11 -10 -9 -9 -8 ------------- Run | Yrd Mat Mat Min Mat Turns Passed 1005 | 66 118 84 303 434 Spaces Moved 830 | 56 111 53 286 324 Core 9 | 1 . . . 8 Treads . | . . . . . Legs . | . . . . . Wheels 821 | 55 111 53 286 316 Hover . | . . . . . Flight . | . . . . . Fastest Speed 50 | 50 90 90 90 93 Average Speed 96 | 91 90 92 92 102 Slowest Speed 300 | 100 105 105 105 300 Overloaded Moves . | . . . . . Propulsion Burnouts . | . . . . . Robots Hopped . | . . . . . Potential Cave-ins . | . . . . . Cave-ins Triggered . | . . . . . Exploration Rate (%) 30 | 3 23 8 82 35 Regions Visited 4 Branch Regions 1 Pre-discovered Areas . | . . . . . Known Exits Taken 1 | . 1 . . . Unknown Exits Taken 3 | 1 . 1 1 . Scrap Searched 2 | . . . 2 . Spaces Dug . | . . . . . Terrain Destroyed 103 | . 18 31 11 43 Melee . | . . . . . Projectile 4 | . . . . 4 AOE 99 | . 18 31 11 39 Terrain Rammed . | . . . . . Walls Destroyed . | . . . . . Machines Disabled . | . . . . . Actions | -11 -10 -9 -9 -8 --------- Run | Yrd Mat Mat Min Mat Total 979 | 68 122 80 323 386 Wait 36 | . . . 27 9 Move 826 | 55 110 52 285 324 Hop . | . . . . . Pick Up 24 | 5 3 7 2 7 Fast Attach 11 | 5 2 1 . 3 Attach 13 | 1 . 2 3 7 Detach 1 | . . . . 1 Swap 19 | 1 3 6 2 7 Drop 23 | 1 2 8 3 9 Fire 26 | . 2 4 1 19 Melee . | . . . . . Ram . | . . . . . Kick . | . . . . . Crush . | . . . . . Escape Stasis . | . . . . . Rewire . | . . . . . Trap . | . . . . . Miscellaneous . | . . . . . Route ------- -11/Scrapyard -10/Materials (discovered 3 exits: *Mat x3) -9/Materials -9/Mines (discovered 2 exits: [*Mat x2]) -8/Materials History --------- Turn | Location | Event 24 | -11/Scrapyard | Discovered new exit (range 16) 67 | -11/Scrapyard | Entered Materials 110 | -10/Materials | Identified exit to Materials 185 | -10/Materials | Entered another Materials area 185 | -9/Materials | Evolved 2 slots: Power x1, Propulsion x1 236 | -9/Materials | Discovered new exit (range 16) 269 | -9/Materials | Entered Mines 281 | -9/Mines | YI-UF0 nonchalantly dropped a Grenade Launcher on the ground 316 | -9/Mines | Build established: Mutant 334 | -9/Mines | Lost 5 parts (2p2n1w) 357 | -9/Mines | Learned Materials machine intel 548 | -9/Mines | Discovered new exit (range 4) 560 | -9/Mines | Discovered new exit (range 13) 572 | -9/Mines | Entered Materials 572 | -8/Materials | Evolved 2 slots: Propulsion x1, Weapon x1 573 | -8/Materials | Loaded intel: 48 machine locations 1006 | -8/Materials | Self-destructed Last Messages --------------- 00951_ Overheating: Com. Wheel damaged (-10). 00951_ U-05 Engineer lays Concrete. 00952_ Power failure, Deuterium Engine shutdown. 00952_ R-06 Scavenger collects Wheel. 00953_ U-05 Engineer lays Concrete. 00954_ System corrupted: Matter fused (-8). 00954_ U-05 Engineer lays Concrete. 00955_ U-05 Engineer builds a Wall. 00955_ Com. Wheel destroyed. 00955_ U-05 Engineer lays Concrete. 00957_ U-05 Engineer builds a Wall. 00958_ U-05 Engineer suffers critical hit (Burn). 00961_ Overheating: Energy bleed (-67). 00963_ U-05 Engineer builds a Wall. 00969_ Critical hit (Burn: +37). 00974_ System corrupted: Energy discharge (-123). 00974_ Lgt. Nuclear Core destroyed. 00977_ O-24 Administrator: "IFF HANDSHAKE FAILED. SECURING TERMINAL." 00981_ ALERT: Hostiles spotted, dispatching reinforcements to Terminal M008. 00982_ Com. Wheel destroyed. Map ----- +----------------------------------------------------+ | ?????????????????????????????????????????????????? | | ?????????????????????????????????????????????????? | | ###?????????????????????????????????""?????????""? | | ?????????????????????????????????T"?????????"Y? | | ?????????????????????????????????""?????????""? | | ??????????????????????????????????????????????? | | #???##########?????????????????????????????????? | | #???# #?????####???????????????????????? | | #???# "" #???? ?? #???????????????????? | | #???# "T """ #??? #???????????????????? | | #???# "" """ #??# """ """ #???????????????????? | | #???# """ #??# """ """ #???????????????????? | | #???# #??# """ """ #???????????????????? | | #???# #??# """ """ #???????????????????? | | ##### #??# """ """ #???????????????????? | | #####+#####??# #???????????????????? | | ### ### ##########+#+###???????????????????? | | =[%!! #????????????????????? | | **!*| " #????????????????????? | | %=! #????????????????????? | | =#### ### ! ########### #????????????????????? | | =######?## ##?T?###???#gg #????????????????????? | | #???????# #?? !#???# #????????????????????? | | #???????# # """ #???# #????????????????????? | | +#???????# + """ ##### #????????????????????? | | ???##### # """ + @ #????????????????????? | | ""???+ # """ ##### #????????????????????? | | ""???##### #? ? #???##+##????????????????????? | | "" ??????# #??#????????? ??????????????????????? | | ? ??????# #??????????"""???""?????????????????? | | ? ??????# #??????????"""???""?????????????????? | | ##+####??# #??????????"""???T"?????????????????? | | #??# #????????????????""?????????????????? | | ? #??# ######???????????""?????????????????? | | ?? #??# +??????????????????????????? | | ??# #####/########?????????????????????????????? | | ??# ## ! #???????????????????????????????? | | ?## ! ##! ] #???????????????????????????????? | | ?##===## " #???????????????????????????????? | | ###=%=!#= #???????????????????????????????? | | + !==%/= #???????????????????????????????? | | ### = ##* #???????????????????????????????? | | ??# ## [ #???????????????????????? ??????? | | ??# ## #???????????????????????? ??????? | | ??# #####+######???????????????????????? ??????? | | ??# # ## #########????????????????????? ??????? | | ??# ! #????????????????????? ??????? | | ??# [ #????????????????????? #?????? | | ??# #????????????????????# #?????? | | ??# # # ####### #???????????########?# #?????? | +----------------------------------------------------+ Best States ------------- Heat Dissipation 31 Energy Generation 23 Energy Capacity 450 Matter Stores 257 Matter Capacity 300 Sight Range 16 Terrain Scan Density 10 Armor Coverage 600 Evasion (%) 42 Item Schematics ----------------- None Robot Schematics ------------------ None Fabricated ------------ Nothing Repaired ---------- Nothing Studied --------- None Alien Tech Used ----------------- None Achievements -------------- None Challenges ------------ None Game ------ Seed WardroneDiametricDrillbomb Manual? 0 Play Time 00:17:46 Cumulative 25.9 hours Start 2025.10.31 @ 22:55:30 End 2025.10.31 @ 23:20:57 Sessions 1 Manual Loads 0 Difficulty Rogue Special Mode None Game No. 32 Rogue 32 Adventurer 0 Explorer 0 Win Type - Total 0 Types 0/0/0/0/0/0/0/0/0/0 Lore% 12 Gallery% 23 Achievement% 16 Wizard Run 0 Options --------- Layout 0 ASCII 0 Keyboard 0 Movement Mouse Keybinds 0 Fullscreen 2 Font 24/Terminus Map View 183x50 Zoom Use 0% Tactical HUD 1 Map Filters NONE Filters NONE Steam 1 RUN: dcd5aa0c-9808-4fda-85c9-8737a7b86fef